[Event "3rd Memorial Warakomska 2019"]
[Site "Suwalki"]
[Date "2019.08.08"]
[Round "5.32"]
[White "Paszewski, Mateusz"]
[Black "Balinski, Damian"]
[Result "1/2-1/2"]
[ECO "B36"]
[WhiteElo "2324"]
[BlackElo "2176"]
[Annotator "NA"]
[PlyCount "110"]
[EventDate "2019.08.05"]
[EventType "swiss"]
[EventCountry "POL"]
[SourceTitle "playchess.com"]
[Source "ChessBase"]
[SourceQuality "1"]
[TimeControl "40/5400+30:1800+30"]

1. e4 {[%emt 0:00:00]} c5 {[%emt 0:00:00]} 2. Nf3 {[%emt 0:00:19]} Nc6 {[%emt 0:00:00]} 3. d4 {[%emt 0:00:26]} cxd4 {[%emt 0:00:00]} 4. Nxd4 {[%emt 0:00:04]} g6 {[%emt 0:00:00]} 5. c4 {[%emt 0:00:04]} Nf6 {[%emt 0:00:05]} 6. Nc3 {[%emt 0:00:03]} d6 {[%emt 0:00:18]} 7. f3 {[%emt 0:00:02]} Nxd4 {[%emt 0:00:11]} 8. Qxd4 {[%emt 0:00:02]} Bg7 {[%emt 0:00:09]} 9. Be3 {[%emt 0:00:03]} O-O {[%emt 0:00:12]} 10. Qd2 {[%emt 0:00:02]} Be6 {[%emt 0:00:07]} 11. Bd3 {[%emt 0:00:49]} Qa5 {[%emt 0:01:07]} 12. Rc1 {[%emt 0:01:41]} Rfc8 {[%emt 0:02:40]} 13. b3 {[%emt 0:00:55]} a6 {[%emt 0:12:41]} 14. Ne2 {[%emt 0:00:28]} Qxd2+ {[%emt 0:02:54]} 15. Kxd2 {[%emt 0:00:03]} Nd7 {[%emt 0:00:30]} 16. Nf4 {[%emt 0:01:18]} Nc5 {[%emt 0:01:38]} 17. Be2 {[%emt 0:00:05]} a5 {[%emt 0:03:53]} 18. h4 {[%emt 0:00:09]} Na6 {[%emt 0:03:57]} 19. Rb1 {[%emt 0:22:52]} Nb4 {[%emt 0:08:29]} 20. a3 {[%emt 0:02:16]} Na6 {[%emt 0:04:17]} 21. Nxe6 {[%emt 0:21:17]} fxe6 {[%emt 0:00:03]} 22. h5 {[%emt 0:00:03]} Nc5 {[%emt 0:08:40]} 23. hxg6 {[%emt 0:01:31]} hxg6 {[%emt 0:01:18]} 24. Bd3 {[%emt 0:02:10]} a4 {[%emt 0:11:13]} 25. b4 {[%emt 0:00:39]} Nb3+ {[%emt 0:03:14]} 26. Ke2 {[%emt 0:00:39]} Kf7 {[%emt 0:13:26]} 27. Rh4 {[%emt 0:03:29]} Rh8 {[%emt 0:05:52]} 28. Rg4 {[%emt 0:05:18]} e5 {[%emt 0:02:54]} 29. c5 {[%emt 0:07:39]} Nd4+ {[%emt 0:01:12]} 30. Kf2 {[%emt 0:00:56]} Bh6 {[%emt 0:02:31]} 31. Bxh6 {[%emt 0:02:38]} Rxh6 {[%emt 0:00:02]} 32. cxd6 {[%emt 0:00:05]} exd6 {[%emt 0:00:04]} 33. Rc1 {[%emt 0:00:04]} Re8 {[%emt 0:02:09]} 34. b5 {[%emt 0:09:41]} Rhh8 {[%emt 0:06:12]} 35. Rc7+ {[%emt 0:02:04]} Kf6 {[%emt 0:00:52]} 36. Bc4 {[%emt 0:11:46]} Re7 {[%emt 0:01:34]} 37. Rxg6+ {[%emt 0:04:29]} Kxg6 {[%emt 0:00:02]} 38. Rxe7 {[%emt 0:00:02]} Rc8 {[%emt 0:00:09]} 39. Bf1 {[%emt 0:01:30]} Rc3 {[%emt 0:02:11]} 40. Rxb7 {[%emt 0:00:00]} Rxa3 {[%emt 0:00:00]} 41. Rb6 {[%emt 0:05:19]} Rb3 {[%emt 0:11:40]} 42. Rxd6+ {[%emt 0:01:32]} Kg5 {[%emt 0:01:17]} 43. Ra6 {[%emt 0:00:26]} a3 {[%emt 0:01:20]} 44. b6 {[%emt 0:11:32]} Rb2+ {[%emt 0:03:09]} 45. Kg1 {[%emt 0:03:56]} Nc2 {[%emt 0:04:06]} 46. Bc4 {[%emt 0:00:32]} Ne3 {[%emt 0:01:40]} 47. Bd5 {[%emt 0:00:29]} Kf4 {[%emt 0:03:28]} 48. b7 {[%emt 0:01:38]} Rxg2+ {[%emt 0:06:14]} 49. Kh1 {[%emt 0:00:01]} Rb2 {[%emt 0:01:04]} 50. Rxa3 {[%emt 0:06:34]} Kg3 {[%emt 0:01:33]} 51. Rb3 {[%emt 0:01:15]} Rh2+ {[%emt 0:00:24]} 52. Kg1 {[%emt 0:00:02]} Rg2+ {[%emt 0:00:36]} 53. Kh1 {[%emt 0:00:01]} Rf2 {[%emt 0:01:16]} 54. Rb1 {[%emt 0:00:19]} Rh2+ {[%emt 0:00:42]} 55. Kg1 {[%emt 0:00:01]} Rg2+ {[%emt 0:00:49]} 1/2-1/2

[Event "3rd Memorial Warakomska 2019"]
[Site "Suwalki"]
[Date "2019.08.08"]
[Round "5.33"]
[White "Zakrzewski, Marek"]
[Black "Klimkowski, Jan"]
[Result "0-1"]
[ECO "A16"]
[WhiteElo "2311"]
[BlackElo "1985"]
[Annotator "NA"]
[PlyCount "75"]
[EventDate "2019.08.05"]
[EventType "swiss"]
[EventCountry "POL"]
[SourceTitle "playchess.com"]
[Source "ChessBase"]
[SourceQuality "1"]
[TimeControl "40/5400+30:1800+30"]

1. c4 {[%emt 0:00:00]} Nf6 {[%emt 0:00:00]} 2. Nc3 {[%emt 0:00:00]} g6 {[%emt 0:00:00]} 3. g3 {[%emt 0:00:00]} Bg7 {[%emt 0:00:00]} 4. Bg2 {[%emt 0:00:10]} O-O {[%emt 0:00:00]} 5. Nf3 {[%emt 0:00:32]} d6 {[%emt 0:00:06]} 6. O-O {[%emt 0:00:20]} Nc6 {[%emt 0:00:12]} 7. Rb1 {[%emt 0:00:40]} a5 {[%emt 0:00:17]} 8. a3 {[%emt 0:00:06]} e5 {[%emt 0:00:17]} 9. d3 {[%emt 0:00:07]} h6 {[%emt 0:00:46]} 10. b4 {[%emt 0:00:08]} axb4 {[%emt 0:00:37]} 11. axb4 {[%emt 0:00:06]} Be6 {[%emt 0:00:22]} 12. b5 {[%emt 0:00:25]} Ne7 {[%emt 0:00:10]} 13. Bb2 {[%emt 0:02:40]} Qd7 {[%emt 0:00:57]} 14. Qb3 {[%emt 0:04:02]} Kh7 {[%emt 0:03:02]} 15. Ra1 {[%emt 0:05:39]} Rab8 {[%emt 0:02:28]} 16. Rfd1 {[%emt 0:08:36]} Bh3 {[%emt 0:03:53]} 17. Bh1 {[%emt 0:02:06]} Ng4 {[%emt 0:02:42]} 18. d4 {[%emt 0:13:43]} f5 {[%emt 0:14:22]} 19. dxe5 {[%emt 0:01:23]} Nxe5 {[%emt 0:00:32]} 20. Nxe5 {[%emt 0:07:59]} Bxe5 {[%emt 0:00:32]} 21. f4 {[%emt 0:00:43]} Bg7 {[%emt 0:01:10]} 22. c5 {[%emt 0:07:26]} Qe8 {[%emt 0:09:59]} 23. cxd6 {[%emt 0:05:51]} cxd6 {[%emt 0:03:35]} 24. Bf3 {[%emt 0:07:47]} Bg4 {[%emt 0:03:09]} 25. Rxd6 {[%emt 0:04:48]} Bxf3 {[%emt 0:01:23]} 26. exf3 {[%emt 0:00:08]} Rd8 {[%emt 0:06:20]} 27. Qd1 {[%emt 0:06:52]} Nc8 {[%emt 0:03:37]} 28. Rd3 {[%emt 0:07:13]} Nb6 {[%emt 0:02:25]} 29. Rc1 {[%emt 0:06:06]} Nc4 {[%emt 0:02:05]} 30. Ba1 {[%emt 0:00:13]} Qe7 {[%emt 0:05:18]} 31. Na4 {[%emt 0:00:52]} Rxd3 {[%emt 0:02:25]} 32. Qxd3 {[%emt 0:00:12]} Rd8 {[%emt 0:00:18]} 33. Qf1 {[%emt 0:08:14]} Qe3+ {[%emt 0:02:13]} 34. Kh1 {[%emt 0:00:09]} Nd2 {[%emt 0:00:56]} 35. Qe1 {[%emt 0:01:27]} Qxf3+ {[%emt 0:00:42]} 36. Kg1 {[%emt 0:00:02]} Qa3 {[%emt 0:02:00]} 37. Kg2 {[%emt 0:01:10]} Nf3 {[%emt 0:02:07]} 38. Qf2 0-1

[Event "3rd Memorial Warakomska 2019"]
[Site "Suwalki"]
[Date "2019.08.08"]
[Round "5.34"]
[White "Luba, Lukasz"]
[Black "Czerw, Dawid"]
[Result "1/2-1/2"]
[ECO "A45"]
[WhiteElo "2177"]
[BlackElo "2326"]
[Annotator "NA"]
[PlyCount "44"]
[EventDate "2019.08.05"]
[EventType "swiss"]
[EventCountry "POL"]
[SourceTitle "playchess.com"]
[Source "ChessBase"]
[SourceQuality "1"]
[TimeControl "40/5400+30:1800+30"]

1. d4 {[%emt 0:00:00]} Nf6 {[%emt 0:00:00]} 2. Nd2 {[%emt 0:00:00]} d5 {[%emt 0:00:16]} 3. e3 {[%emt 0:00:10]} g6 {[%emt 0:01:25]} 4. Bd3 {[%emt 0:00:11]} Bg7 {[%emt 0:00:22]} 5. h3 {[%emt 0:00:07]} O-O {[%emt 0:00:53]} 6. g4 {[%emt 0:00:47]} c5 {[%emt 0:03:24]} 7. c3 {[%emt 0:02:35]} cxd4 {[%emt 0:19:24]} 8. cxd4 {[%emt 0:06:39]} Nc6 {[%emt 0:03:30]} 9. f4 {[%emt 0:07:11]} b6 {[%emt 0:01:10]} 10. a3 {[%emt 0:00:42]} a5 {[%emt 0:02:45]} 11. Qe2 {[%emt 0:00:06]} Nb8 {[%emt 0:03:01]} 12. g5 {[%emt 0:01:59]} Nh5 {[%emt 0:01:33]} 13. Qg2 {[%emt 0:02:31]} Ba6 {[%emt 0:02:12]} 14. Be2 {[%emt 0:01:52]} Bxe2 {[%emt 0:03:59]} 15. Nxe2 {[%emt 0:02:22]} Nc6 {[%emt 0:00:06]} 16. Nf1 {[%emt 0:02:03]} Rc8 {[%emt 0:06:06]} 17. Nfg3 {[%emt 0:04:27]} Nxg3 {[%emt 0:00:21]} 18. Qxg3 {[%emt 0:00:06]} f5 {[%emt 0:07:40]} 19. h4 {[%emt 0:00:17]} Kf7 {[%emt 0:01:45]} 20. h5 {[%emt 0:00:57]} Rh8 {[%emt 0:01:43]} 21. Bd2 {[%emt 0:01:55]} Na7 {[%emt 0:02:34]} 22. Nc3 {[%emt 0:07:44]} Qd7 {[%emt 0:04:30]} 1/2-1/2

[Event "3rd Memorial Warakomska 2019"]
[Site "Suwalki"]
[Date "2019.08.08"]
[Round "5.35"]
[White "Hoffmann, Yair"]
[Black "Szadkowski, Kamil"]
[Result "1/2-1/2"]
[ECO "E63"]
[WhiteElo "2099"]
[BlackElo "2245"]
[Annotator "NA"]
[PlyCount "43"]
[EventDate "2019.08.05"]
[EventType "swiss"]
[EventCountry "POL"]
[SourceTitle "playchess.com"]
[Source "ChessBase"]
[SourceQuality "1"]
[TimeControl "40/5400+30:1800+30"]

1. d4 {[%emt 0:00:00]} Nf6 {[%emt 0:00:00]} 2. c4 {[%emt 0:00:00]} g6 {[%emt 0:00:09]} 3. Nc3 {[%emt 0:00:00]} Bg7 {[%emt 0:00:06]} 4. Nf3 {[%emt 0:00:05]} O-O {[%emt 0:00:24]} 5. g3 {[%emt 0:00:09]} Nc6 {[%emt 0:01:00]} 6. Bg2 {[%emt 0:00:23]} d6 {[%emt 0:01:36]} 7. O-O {[%emt 0:00:18]} a6 {[%emt 0:00:31]} 8. d5 {[%emt 0:01:10]} Na5 {[%emt 0:00:09]} 9. b3 {[%emt 0:00:45]} c5 {[%emt 0:00:32]} 10. dxc6 {[%emt 0:01:05]} Nxc6 {[%emt 0:00:05]} 11. Bb2 {[%emt 0:00:21]} Qa5 {[%emt 0:00:18]} 12. Nd5 {[%emt 0:01:46]} Nxd5 {[%emt 0:01:07]} 13. Bxg7 {[%emt 0:00:08]} Nc3 {[%emt 0:00:58]} 14. Bxc3 {[%emt 0:00:11]} Qxc3 {[%emt 0:00:03]} 15. e3 {[%emt 0:01:49]} Rd8 {[%emt 0:08:29]} 16. Nd4 {[%emt 0:11:25]} Bd7 {[%emt 0:08:48]} 17. Qe2 {[%emt 0:06:26]} Rab8 {[%emt 0:07:22]} 18. Rac1 {[%emt 0:01:59]} Qa5 {[%emt 0:01:40]} 19. Rfd1 {[%emt 0:00:44]} Rdc8 {[%emt 0:10:54]} 20. Qb2 {[%emt 0:04:19]} Qh5 {[%emt 0:07:00]} 21. Ne2 {[%emt 0:05:45]} Ne5 {[%emt 0:08:49]} 22. Nd4 {[%emt 0:07:35]} 1/2-1/2

[Event "3rd Memorial Warakomska 2019"]
[Site "Suwalki"]
[Date "2019.08.08"]
[Round "5.36"]
[White "Lis, Mateusz"]
[Black "Kiolbasa, Oliwia"]
[Result "1/2-1/2"]
[ECO "C68"]
[WhiteElo "2007"]
[BlackElo "2239"]
[Annotator "NA"]
[PlyCount "59"]
[EventDate "2019.08.05"]
[EventType "swiss"]
[EventCountry "POL"]
[SourceTitle "playchess.com"]
[Source "ChessBase"]
[SourceQuality "1"]
[TimeControl "40/5400+30:1800+30"]

1. e4 {[%emt 0:00:00]} e5 {[%emt 0:01:07]} 2. Nf3 {[%emt 0:00:00]} Nc6 {[%emt 0:00:11]} 3. Bb5 {[%emt 0:00:00]} a6 {[%emt 0:00:08]} 4. Bxc6 {[%emt 0:00:00]} dxc6 {[%emt 0:00:08]} 5. O-O {[%emt 0:00:00]} f6 {[%emt 0:00:13]} 6. d4 {[%emt 0:00:35]} exd4 {[%emt 0:00:10]} 7. Nxd4 {[%emt 0:00:05]} c5 {[%emt 0:00:14]} 8. Ne2 {[%emt 0:00:07]} Qxd1 {[%emt 0:00:14]} 9. Rxd1 {[%emt 0:00:04]} Bd7 {[%emt 0:00:11]} 10. Bf4 {[%emt 0:01:19]} O-O-O {[%emt 0:00:43]} 11. Nbc3 {[%emt 0:00:40]} Ne7 {[%emt 0:00:22]} 12. Bg3 {[%emt 0:02:44]} Re8 {[%emt 0:20:48]} 13. f3 {[%emt 0:05:36]} Bc6 {[%emt 0:04:49]} 14. Nf4 {[%emt 0:15:13]} Ng6 {[%emt 0:06:32]} 15. Nxg6 {[%emt 0:13:29]} hxg6 {[%emt 0:00:14]} 16. Nd5 {[%emt 0:00:32]} Bxd5 {[%emt 0:06:24]} 17. Rxd5 {[%emt 0:01:21]} Rh5 {[%emt 0:04:40]} 18. Rad1 {[%emt 0:00:58]} Rxd5 {[%emt 0:00:45]} 19. Rxd5 {[%emt 0:00:06]} Re6 {[%emt 0:00:23]} 20. c4 {[%emt 0:11:16]} Be7 {[%emt 0:02:01]} 21. Kf2 {[%emt 0:08:23]} b5 {[%emt 0:03:53]} 22. b3 {[%emt 0:06:01]} bxc4 {[%emt 0:03:39]} 23. bxc4 {[%emt 0:00:06]} Rb6 {[%emt 0:00:09]} 24. Rd2 {[%emt 0:00:05]} Rb4 {[%emt 0:02:06]} 25. Rc2 {[%emt 0:00:06]} Bd6 {[%emt 0:00:41]} 26. f4 {[%emt 0:04:01]} a5 {[%emt 0:05:32]} 27. Ke3 {[%emt 0:03:21]} Rb1 {[%emt 0:02:47]} 28. e5 {[%emt 0:02:18]} Be7 {[%emt 0:01:23]} 29. Rc3 {[%emt 0:04:12]} Rb6 {[%emt 0:16:13]} 30. Ra3 {[%emt 0:08:24]} 1/2-1/2

[Event "3rd Memorial Warakomska 2019"]
[Site "Suwalki"]
[Date "2019.08.08"]
[Round "5.37"]
[White "Shpanko, Nadiia"]
[Black "Jankowiak, Tomasz"]
[Result "1/2-1/2"]
[ECO "A28"]
[WhiteElo "2132"]
[BlackElo "2104"]
[Annotator "NA"]
[PlyCount "147"]
[EventDate "2019.08.05"]
[EventType "swiss"]
[EventCountry "POL"]
[SourceTitle "playchess.com"]
[Source "ChessBase"]
[SourceQuality "1"]
[TimeControl "40/5400+30:1800+30"]

1. c4 {[%emt 0:00:00]} e5 {[%emt 0:00:12]} 2. Nc3 {[%emt 0:00:00]} Nf6 {[%emt 0:00:06]} 3. Nf3 {[%emt 0:00:04]} Nc6 {[%emt 0:00:08]} 4. e3 {[%emt 0:00:18]} d5 {[%emt 0:06:17]} 5. cxd5 {[%emt 0:00:11]} Nxd5 {[%emt 0:00:05]} 6. Bb5 {[%emt 0:00:10]} Nxc3 {[%emt 0:00:37]} 7. bxc3 {[%emt 0:00:10]} Bd7 {[%emt 0:03:49]} 8. d4 {[%emt 0:00:41]} Bd6 {[%emt 0:15:01]} 9. O-O {[%emt 0:04:58]} O-O {[%emt 0:05:10]} 10. Nd2 {[%emt 0:02:01]} exd4 {[%emt 0:14:39]} 11. cxd4 {[%emt 0:04:01]} Re8 {[%emt 0:02:11]} 12. Bb2 {[%emt 0:10:00]} Qg5 {[%emt 0:03:27]} 13. Be2 {[%emt 0:02:56]} Ne7 {[%emt 0:17:49]} 14. Bf3 {[%emt 0:13:35]} Nf5 {[%emt 0:01:40]} 15. Re1 {[%emt 0:07:18]} Nh4 {[%emt 0:03:09]} 16. g3 {[%emt 0:09:37]} Nxf3+ {[%emt 0:00:35]} 17. Qxf3 {[%emt 0:02:03]} Bc6 {[%emt 0:01:42]} 18. Qe2 {[%emt 0:00:34]} Bb4 {[%emt 0:01:01]} 19. Rad1 {[%emt 0:24:43]} Bxd2 {[%emt 0:02:54]} 20. Rxd2 {[%emt 0:00:07]} Qd5 {[%emt 0:00:17]} 21. e4 {[%emt 0:00:32]} Rxe4 {[%emt 0:03:28]} 22. Qxe4 {[%emt 0:00:08]} Qxe4 {[%emt 0:00:04]} 23. Rxe4 {[%emt 0:00:06]} Bxe4 {[%emt 0:00:03]} 24. Re2 {[%emt 0:00:36]} Bc6 {[%emt 0:05:49]} 25. Re7 {[%emt 0:00:26]} Re8 {[%emt 0:00:18]} 26. Rxe8+ {[%emt 0:00:06]} Bxe8 {[%emt 0:00:04]} 27. Kf1 {[%emt 0:00:23]} f6 {[%emt 0:02:04]} 28. Ke2 {[%emt 0:01:59]} Kf7 {[%emt 0:00:05]} 29. Kd3 {[%emt 0:02:36]} Ke6 {[%emt 0:00:16]} 30. Bc1 {[%emt 0:01:07]} g5 {[%emt 0:03:01]} 31. Ba3 {[%emt 0:01:43]} Bb5+ {[%emt 0:00:33]} 32. Kc3 {[%emt 0:00:11]} g4 {[%emt 0:00:48]} 33. Bc1 {[%emt 0:01:59]} Kd5 {[%emt 0:00:18]} 34. Bf4 {[%emt 0:00:08]} c6 {[%emt 0:00:05]} 35. Bb8 {[%emt 0:01:23]} a5 {[%emt 0:00:32]} 36. Bc7 {[%emt 0:00:37]} a4 {[%emt 0:00:16]} 37. a3 {[%emt 0:00:19]} Bc4 {[%emt 0:02:29]} 38. Bb6 {[%emt 0:04:07]} f5 {[%emt 0:00:28]} 39. Kb4 {[%emt 0:00:45]} Bb3 {[%emt 0:00:17]} 40. Kc3 {[%emt 0:00:00]} Ke4 {[%emt 0:00:00]} 41. Kd2 {[%emt 0:11:48]} Kf3 {[%emt 0:01:25]} 42. Ke1 {[%emt 0:00:06]} Bd5 {[%emt 0:13:48]} 43. Kf1 {[%emt 0:00:55]} Bc4+ {[%emt 0:00:15]} 44. Ke1 {[%emt 0:00:09]} h5 {[%emt 0:00:21]} 45. Bc5 {[%emt 0:01:40]} b5 {[%emt 0:01:54]} 46. Kd2 {[%emt 0:00:07]} Kxf2 {[%emt 0:16:50]} 47. d5+ {[%emt 0:00:08]} Kf3 {[%emt 0:00:37]} 48. dxc6 {[%emt 0:00:14]} f4 {[%emt 0:00:42]} 49. c7 {[%emt 0:00:30]} Be6 {[%emt 0:00:04]} 50. Bd6 {[%emt 0:04:06]} Kg2 {[%emt 0:02:32]} 51. Bxf4 {[%emt 0:00:16]} Kxh2 {[%emt 0:00:13]} 52. Kc3 {[%emt 0:00:14]} Kh3 {[%emt 0:00:12]} 53. Kb4 {[%emt 0:00:13]} h4 {[%emt 0:00:26]} 54. gxh4 {[%emt 0:00:14]} Kxh4 {[%emt 0:00:05]} 55. Kxb5 {[%emt 0:00:09]} Bd7+ {[%emt 0:00:47]} 56. Kb6 {[%emt 0:02:29]} g3 {[%emt 0:00:54]} 57. Kb7 {[%emt 0:00:45]} g2 {[%emt 0:00:05]} 58. Bh2 {[%emt 0:01:19]} Kg4 {[%emt 0:01:14]} 59. c8=Q {[%emt 0:00:09]} Bxc8+ {[%emt 0:00:06]} 60. Kxc8 {[%emt 0:00:02]} Kf5 {[%emt 0:00:55]} 61. Kd7 {[%emt 0:01:06]} Ke4 {[%emt 0:00:10]} 62. Kc6 {[%emt 0:00:26]} Kd4 {[%emt 0:00:15]} 63. Kb5 Kd5 64. Bg1 {[%emt 0:03:34]} Kd6 {[%emt 0:00:16]} 65. Bh2+ {[%emt 0:00:25]} Kd5 {[%emt 0:00:16]} 66. Bg1 {[%emt 0:00:04]} Kd6 {[%emt 0:00:04]} 67. Kxa4 {[%emt 0:00:06]} Kc6 {[%emt 0:00:04]} 68. Kb4 {[%emt 0:00:04]} Kb7 {[%emt 0:00:03]} 69. Kb5 {[%emt 0:00:03]} Ka8 {[%emt 0:00:04]} 70. Kb6 {[%emt 0:00:06]} Kb8 {[%emt 0:00:04]} 71. a4 {[%emt 0:00:02]} Ka8 {[%emt 0:00:03]} 72. a5 {[%emt 0:00:05]} Kb8 {[%emt 0:00:02]} 73. a6 {[%emt 0:00:02]} Ka8 {[%emt 0:00:04]} 74. a7 {[%emt 0:00:02]} 1/2-1/2

[Event "3rd Memorial Warakomska 2019"]
[Site "Suwalki"]
[Date "2019.08.08"]
[Round "5.38"]
[White "Bai, Adelard"]
[Black "Bukojemski, Adam"]
[Result "0-1"]
[ECO "D70"]
[WhiteElo "2113"]
[BlackElo "2225"]
[Annotator "NA"]
[PlyCount "82"]
[EventDate "2019.08.05"]
[EventType "swiss"]
[EventCountry "POL"]
[SourceTitle "playchess.com"]
[Source "ChessBase"]
[SourceQuality "1"]
[TimeControl "40/5400+30:1800+30"]

1. d4 {[%emt 0:00:00]} Nf6 {[%emt 0:00:48]} 2. c4 {[%emt 0:00:00]} g6 {[%emt 0:00:08]} 3. f3 {[%emt 0:00:12]} d5 {[%emt 0:00:20]} 4. cxd5 {[%emt 0:00:48]} Nxd5 {[%emt 0:00:05]} 5. e4 {[%emt 0:00:38]} Nb6 {[%emt 0:00:14]} 6. Nc3 {[%emt 0:01:49]} Bg7 {[%emt 0:00:19]} 7. Be3 {[%emt 0:00:12]} O-O {[%emt 0:00:14]} 8. Qd2 {[%emt 0:01:13]} Nc6 {[%emt 0:00:07]} 9. O-O-O {[%emt 0:01:02]} Qd6 {[%emt 0:01:22]} 10. Nb5 {[%emt 0:02:49]} Qd7 {[%emt 0:00:15]} 11. Kb1 {[%emt 0:02:47]} Rd8 {[%emt 0:02:57]} 12. d5 {[%emt 0:00:53]} a6 {[%emt 0:03:41]} 13. Nc3 {[%emt 0:12:07]} Qe8 {[%emt 0:02:43]} 14. Qc1 {[%emt 0:03:49]} Ne5 {[%emt 0:04:50]} 15. Nge2 {[%emt 0:10:33]} Nbc4 {[%emt 0:02:14]} 16. Bh6 {[%emt 0:13:45]} Bh8 {[%emt 0:05:10]} 17. b3 {[%emt 0:06:04]} b5 {[%emt 0:00:20]} 18. bxc4 {[%emt 0:03:45]} b4 {[%emt 0:00:37]} 19. Kc2 {[%emt 0:13:59]} Bd7 {[%emt 0:24:12]} 20. Kd2 {[%emt 0:04:24]} Nxc4+ {[%emt 0:02:45]} 21. Ke1 {[%emt 0:00:11]} bxc3 {[%emt 0:00:56]} 22. Nxc3 {[%emt 0:00:12]} Nd6 {[%emt 0:05:06]} 23. Be3 {[%emt 0:02:14]} Nb5 {[%emt 0:03:35]} 24. Na4 {[%emt 0:02:31]} e6 {[%emt 0:07:47]} 25. Kf2 {[%emt 0:01:37]} exd5 {[%emt 0:01:59]} 26. exd5 {[%emt 0:02:07]} Nd6 {[%emt 0:05:13]} 27. Nc5 {[%emt 0:00:17]} Nf5 {[%emt 0:01:23]} 28. Nxd7 {[%emt 0:00:46]} Nxe3 {[%emt 0:05:28]} 29. Qxe3 {[%emt 0:00:09]} Qxd7 {[%emt 0:00:14]} 30. Bc4 {[%emt 0:00:45]} Re8 {[%emt 0:00:57]} 31. Qd3 {[%emt 0:00:12]} Qd6 {[%emt 0:00:29]} 32. g3 {[%emt 0:05:51]} Qc5+ {[%emt 0:01:02]} 33. Kg2 {[%emt 0:00:05]} Re3 {[%emt 0:00:25]} 34. Qc2 {[%emt 0:00:20]} Rc3 {[%emt 0:00:17]} 35. Qxc3 {[%emt 0:05:38]} Bxc3 {[%emt 0:00:07]} 36. Bb3 {[%emt 0:00:05]} Re8 {[%emt 0:00:33]} 37. Rhf1 {[%emt 0:00:10]} Re2+ {[%emt 0:00:29]} 38. Kh1 {[%emt 0:00:05]} Be5 {[%emt 0:01:59]} 39. Rc1 {[%emt 0:00:00]} Qe3 {[%emt 0:00:00]} 40. Rcd1 {[%emt 0:00:00]} Bxg3 {[%emt 0:00:00]} 41. hxg3 {[%emt 0:01:19]} Qh6+ {[%emt 0:00:54]} 0-1

[Event "3rd Memorial Warakomska 2019"]
[Site "Suwalki"]
[Date "2019.08.08"]
[Round "5.39"]
[White "Szczurek, Krzysztof"]
[Black "Selbes, Tarik"]
[Result "0-1"]
[ECO "B13"]
[WhiteElo "2104"]
[BlackElo "2342"]
[Annotator "NA"]
[PlyCount "82"]
[EventDate "2019.08.05"]
[EventType "swiss"]
[EventCountry "POL"]
[SourceTitle "playchess.com"]
[Source "ChessBase"]
[SourceQuality "1"]
[TimeControl "40/5400+30:1800+30"]

1. e4 {[%emt 0:00:00]} c6 {[%emt 0:01:02]} 2. d4 {[%emt 0:00:04]} d5 {[%emt 0:00:44]} 3. exd5 {[%emt 0:00:08]} cxd5 {[%emt 0:00:07]} 4. Nf3 {[%emt 0:00:12]} Nf6 {[%emt 0:00:45]} 5. Bd3 {[%emt 0:00:15]} Nc6 {[%emt 0:00:27]} 6. c3 {[%emt 0:00:19]} Bg4 {[%emt 0:01:40]} 7. Bf4 {[%emt 0:01:49]} e6 {[%emt 0:00:14]} 8. Qb3 {[%emt 0:01:54]} Qc8 {[%emt 0:04:56]} 9. Ne5 {[%emt 0:03:25]} Nxe5 {[%emt 0:00:10]} 10. Bxe5 {[%emt 0:00:13]} a6 {[%emt 0:00:48]} 11. O-O {[%emt 0:03:53]} Be7 {[%emt 0:00:16]} 12. Qc2 {[%emt 0:01:02]} Bh5 {[%emt 0:01:09]} 13. Nd2 {[%emt 0:00:49]} Bg6 {[%emt 0:00:18]} 14. Bxg6 {[%emt 0:02:45]} hxg6 {[%emt 0:00:31]} 15. h3 {[%emt 0:00:09]} O-O {[%emt 0:00:36]} 16. Qd3 {[%emt 0:01:14]} b5 {[%emt 0:01:39]} 17. a3 {[%emt 0:14:40]} Qc6 {[%emt 0:02:08]} 18. Bxf6 {[%emt 0:01:16]} gxf6 {[%emt 0:00:20]} 19. Rfe1 {[%emt 0:00:45]} Kg7 {[%emt 0:01:39]} 20. Rec1 {[%emt 0:09:07]} a5 {[%emt 0:03:34]} 21. b4 {[%emt 0:01:15]} a4 {[%emt 0:07:05]} 22. f4 {[%emt 0:07:05]} Rac8 {[%emt 0:01:09]} 23. g3 {[%emt 0:01:31]} Rh8 {[%emt 0:04:09]} 24. Qf1 {[%emt 0:02:26]} g5 {[%emt 0:09:43]} 25. Rc2 {[%emt 0:04:54]} gxf4 {[%emt 0:05:15]} 26. Qxf4 {[%emt 0:00:50]} Rcg8 {[%emt 0:02:23]} 27. Rf1 {[%emt 0:04:26]} Rh6 {[%emt 0:00:41]} 28. Rf3 {[%emt 0:04:21]} Bd6 {[%emt 0:01:02]} 29. Qe3 {[%emt 0:00:09]} Rxh3 {[%emt 0:00:57]} 30. Nf1 {[%emt 0:00:09]} Qc7 {[%emt 0:04:34]} 31. Rcf2 {[%emt 0:04:00]} f5 {[%emt 0:01:22]} 32. Kg2 {[%emt 0:00:47]} Rh7 {[%emt 0:02:27]} 33. Qd3 {[%emt 0:01:10]} Qb8 {[%emt 0:00:22]} 34. Ne3 {[%emt 0:01:54]} Kf8 {[%emt 0:02:02]} 35. g4 {[%emt 0:00:51]} Rh2+ {[%emt 0:04:24]} 36. Kf1 {[%emt 0:00:06]} Rxf2+ {[%emt 0:00:16]} 37. Rxf2 {[%emt 0:00:10]} fxg4 {[%emt 0:05:45]} 38. Qh7 {[%emt 0:00:13]} Qc7 {[%emt 0:00:26]} 39. Qh6+ {[%emt 0:00:05]} Ke8 {[%emt 0:00:41]} 40. Qh7 {[%emt 0:00:00]} Rg6 {[%emt 0:00:00]} 41. Qh8+ {[%emt 0:00:12]} Bf8 {[%emt 0:01:48]} 0-1